bitfinex-derivatives/quotes_ETHF0:USTF0_20230830
["timestamp","ask_amount","ask_price","bid_price","bid_amount"]
[1693411948575,3.07169002,1702.3,1702.2,6.71458176]
[1693411948973,3.07169002,1702.3,1702.2,14.42554542]
[1693411949380,3.07169002,1702.3,1702.2,14.43031897]
[1693411950376,3.07169002,1702.3,1702.2,6.71935531]
[1693411953784,3.07169002,1702.3,1702.2,9.92715531]
[1693411956586,3.07169002,1702.4,1702.2,9.92715531]
[1693411956782,3.83961253,1702.5,1702.3,7.55093648]
[1693411957083,3.07528815,1702.4,1702.3,2.26993648]
[1693411957274,3.07528815,1702.4,1702.3,12.66653648]
[1693411957481,3.07528815,1702.4,1702.3,14.10011824]
[1693411957980,4.30285403,1702.5,1702.3,14.10011824]
[1693411958286,4.30285403,1702.5,1702.4,5.281]
[1693411958784,0.4632415,1702.5,1702.4,5.281]
[1693411958985,3.2078,1702.6,1702.4,5.281]
[1693411959184,3.2078,1702.6,1702.5,5.281]
[1693411959787,7.80772564,1702.6,1702.5,5.281]
[1693411961779,8.28013049,1702.6,1702.5,5.281]
[1693411961982,8.28013049,1702.6,1702.5,6.71458176]
[1693411962185,8.2937986,1702.6,1702.5,6.71458176]
[1693411963384,8.2937986,1702.6,1702.5,5.281]
[1693411967988,14.16679159,1702.6,1702.5,5.281]
[1693411968184,8.2937986,1702.6,1702.5,6.71458176]
[1693411968491,8.2937986,1702.6,1702.5,6.7193339]
[1693411968689,8.2937986,1702.6,1702.5,5.28575214]
[1693411968986,14.16468897,1702.6,1702.5,5.28575214]
[1693411970176,14.16468897,1702.6,1702.5,0.00475214]
[1693411971875,14.16468897,1702.6,1702.5,6.7193339]
[1693411971876,8.2937986,1702.6,1702.5,6.7193339]
[1693411972275,8.0937986,1702.6,1702.5,6.7193339]
[1693411973587,8.0937986,1702.6,1702.5,5.28575214]
[1693411973882,13.97088245,1702.6,1702.5,5.28575214]
[1693411974987,13.97355916,1702.6,1702.5,5.28575214]
[1693411976377,9.3572887,1702.6,1702.5,5.28575214]
[1693411976582,3.48020485,1702.6,1702.5,5.28575214]
[1693411977083,8.09668398,1702.6,1702.5,5.28575214]
[1693411977388,13.97376783,1702.6,1702.5,5.28575214]
[1693411979092,13.97376783,1702.6,1702.5,6.7193339]
[1693411980489,13.97376783,1702.6,1702.5,5.28575214]
[1693411984794,9.3572887,1702.6,1702.5,5.28575214]
[1693411985001,3.48020485,1702.6,1702.5,5.28575214]
[1693411986795,8.86585372,1702.6,1702.5,5.28575214]
[1693411986992,3.48020485,1702.6,1702.5,5.28575214]
[1693411987198,8.86755004,1702.6,1702.5,5.28575214]
[1693411987597,3.48020485,1702.6,1702.5,5.28575214]
[1693411987798,8.86755004,1702.6,1702.5,5.28575214]
[1693411988796,14.74463389,1702.6,1702.5,5.28575214]
[1693411990299,14.74463389,1702.6,1702.5,7.87155214]
[1693411991899,14.74463389,1702.6,1702.5,2.59055214]
[1693411992399,14.74463389,1702.6,1702.5,4.0241339]
[1693411992794,14.74463389,1702.6,1702.5,2.59055214]
[1693411993898,9.3572887,1702.6,1702.5,2.59055214]
[1693411994200,3.48020485,1702.6,1702.5,2.59055214]
[1693411994592,9.63717079,1702.6,1702.5,2.59055214]
[1693411995198,15.51425464,1702.6,1702.5,2.59055214]
[1693411996005,9.63717079,1702.6,1702.5,2.59055214]
[1693411996405,15.51425464,1702.6,1702.5,2.59055214]
[1693411996704,15.51425464,1702.6,1702.5,5.20145214]
[1693412010416,9.63717079,1702.6,1702.5,5.20145214]
[1693412012919,9.64877457,1702.6,1702.5,5.20145214]
[1693412013123,9.64877457,1702.6,1702.5,6.6350339]
[1693412014326,9.64877457,1702.6,1702.5,5.20145214]
[1693412018026,9.64877457,1702.6,1702.5,6.6350339]
[1693412018425,9.64877457,1702.6,1702.5,5.18225214]
[1693412018621,9.64877457,1702.6,1702.5,6.6158339]
[1693412019231,9.64877457,1702.6,1702.5,6.62022542]
[1693412019533,9.64888395,1702.6,1702.5,6.62022542]
[1693412022530,9.64895261,1702.6,1702.5,6.62022542]
[1693412023934,9.64895261,1702.6,1702.5,5.18664366]
[1693412024240,9.64895261,1702.6,1702.5,6.62022542]
[1693412027842,9.64895261,1702.6,1702.5,5.18664366]
[1693412031448,9.64895261,1702.6,1702.5,6.62022542]
[1693412031851,9.64895261,1702.6,1702.5,5.18664366]
[1693412033448,9.64895261,1702.6,1702.5,6.62022542]
[1693412034640,9.64895261,1702.6,1702.5,5.18664366]
[1693412035448,9.64895261,1702.6,1702.5,6.62022542]
[1693412035851,9.64895261,1702.6,1702.5,5.18664366]
[1693412036252,8.87478907,1702.6,1702.5,6.62022542]
[1693412036456,8.87478907,1702.6,1702.5,5.18664366]
[1693412037350,8.87478907,1702.6,1702.5,6.62022542]
[1693412038554,8.87478907,1702.6,1702.5,5.18664366]
[1693412041851,14.15578907,1702.6,1702.5,5.18664366]
[1693412042058,8.76120485,1702.6,1702.5,5.18664366]
[1693412042257,14.92995261,1702.6,1702.5,2.61529152]
[1693412042754,14.92995261,1702.6,1702.1,0.47367121]
[1693412043059,14.92995261,1702.6,1702.2,11.28318099]
[1693412043060,9.90306486,1702.3,1702.2,11.28318099]
[1693412043255,9.90306486,1702.3,1702.2,0.00424403]
[1693412043256,13.11086486,1702.3,1702.2,0.00424403]
[1693412043459,13.88120901,1702.3,1702.2,0.00424403]
[1693412043660,9.33419113,1702.3,1702.2,0.00424403]
[1693412044457,16.27403236,1702.3,1701.8,7.6917]
[1693412044658,3.2078,1701.9,1701.8,7.6917]
[1693412044855,3.2078,1701.9,1701.8,9.12528176]
[1693412045256,7.05541261,1701.9,1701.8,20.41448178]
[1693412045461,3.2078,1701.9,1701.8,9.12937002]
[1693412046155,7.05533367,1701.9,1701.8,9.12937002]
[1693412047862,3.2078,1701.9,1701.8,9.12937002]
[1693412048064,3.07597169,1701.9,1701.8,20.41353924]
[1693412048362,3.07597169,1701.9,1701.8,9.12937002]
[1693412048568,3.07597169,1701.9,1701.8,20.41360896]
[1693412048863,3.07597169,1701.9,1701.8,9.12937002]
[1693412049266,6.28262242,1701.9,1701.8,7.69578826]
[1693412049663,3.2078,1701.9,1701.8,7.69578826]
[1693412050066,6.28254777,1701.9,1701.8,9.12937002]
[1693412050263,6.28201746,1701.9,1701.8,9.12937002]
[1693412050464,3.2078,1701.9,1701.8,9.12937002]
[1693412050669,6.28201742,1701.9,1701.8,9.12937002]
[1693412051266,6.28201742,1701.9,1701.8,7.69578826]
[1693412052266,6.28201742,1701.9,1701.8,9.12937002]
[1693412056068,3.2078,1701.9,1701.8,9.12937002]
[1693412056468,5.51174681,1701.9,1701.8,9.12937002]
[1693412058070,2.30394681,1701.9,1701.8,7.69578826]
[1693412058268,5.51174681,1701.9,1701.8,7.69578826]
[1693412058474,5.51133164,1701.9,1701.8,7.69578826]
[1693412059576,5.51133164,1701.9,1701.8,9.12937002]
[1693412059876,5.51133164,1701.9,1701.8,7.69578826]
[1693412060776,5.97551343,1701.9,1701.8,7.69578826]
[1693412062671,5.97551343,1701.9,1701.8,9.12937002]
[1693412063278,5.97551343,1701.9,1701.8,7.69578826]
[1693412064678,5.97551343,1701.9,1701.8,9.12937002]
[1693412065083,5.97551343,1701.9,1701.8,7.69578826]
[1693412066181,5.97551343,1701.9,1701.8,9.12937002]
[1693412066779,7.51073312,1701.9,1701.8,9.12937002]
[1693412068581,5.20720148,1701.9,1701.8,9.12937002]
[1693412069984,7.51073312,1701.9,1701.8,9.12937002]
[1693412073181,7.51073312,1701.9,1701.8,7.69578826]
[1693412073688,5.97551343,1701.9,1701.8,7.69578826]
[1693412075087,5.97551343,1701.9,1701.8,0.00408826]
[1693412075287,11.25651343,1701.9,1701.8,0.00408826]
[1693412075587,12.79575356,1701.9,1701.3,1.53898591]
[1693412075787,1.53506768,1701.5,1701.4,10.2506]
[1693412076380,7.0454692,1701.6,1701.4,10.25455959]
[1693412076983,6.81606768,1701.5,1701.4,2.44835959]
[1693412077185,7.58360152,1701.5,1701.4,2.44835959]
[1693412077383,9.11806901,1701.5,1701.4,2.44835959]
[1693412077584,6.81546749,1701.5,1701.4,2.44835959]
[1693412077788,9.11806901,1701.5,1701.4,2.44835959]
[1693412078187,6.81546749,1701.5,1701.4,2.44835959]
[1693412079894,6.81546749,1701.5,1701.4,3.88194135]
[1693412080287,6.81546749,1701.5,1701.4,2.44835959]
[1693412081394,4.74226749,1701.6,1701.4,3.88194135]
[1693412081987,4.74226749,1701.6,1701.5,5.281]
[1693412082389,4.74226749,1701.6,1701.5,5.28495245]
[1693412082589,4.74226749,1701.6,1701.5,7.55488893]
[1693412082890,3.83706901,1701.6,1701.5,7.55488893]
[1693412083091,1.53446749,1701.6,1701.5,7.55488893]
[1693412085787,3.83706901,1701.6,1701.5,7.55488893]
[1693412087189,1.53446749,1701.6,1701.5,7.55488893]
[1693412087793,3.83828392,1701.6,1701.5,7.55488893]
[1693412088195,2.30260152,1701.6,1701.5,7.55488893]
[1693412088792,3.83831125,1701.6,1701.5,7.55488893]
[1693412089192,2.30260152,1701.6,1701.5,7.55488893]
[1693412090991,2.30260152,1701.6,1701.5,5.28495245]
[1693412091189,5.51040152,1701.6,1701.5,0.00395245]
[1693412091391,10.79140152,1701.6,1701.5,0.00395245]
[1693412093292,10.79140152,1701.6,1701.3,1.53898591]
[1693412093492,6.81623124,1701.5,1701.3,1.53898591]
[1693412094396,6.81623124,1701.5,1701.4,0.00395959]
[1693412095298,6.81623124,1701.5,1701.3,1.53898591]
[1693412095986,6.81623124,1701.5,1701.2,12.70867886]
[1693412095987,9.11883276,1701.5,1701.2,14.24766477]
[1693412096393,9.11883276,1701.5,1701.3,0.00396674]
[1693412097901,1.53523124,1701.4,1701.3,0.00396674]
[1693412101395,5.51040152,1701.4,1701.0,4.32689563]
[1693412101598,1.53479974,1701.1,1700.9,4.01678591]
[1693412101899,1.53479974,1701.1,1700.9,2.4778]
[1693412101900,6.81579974,1701.0,1700.9,2.4778]
[1693412102294,10.02359974,1701.0,1700.9,2.48164276]
[1693412102495,8.4888,1701.0,1700.9,2.48164276]
[1693412102893,10.02359974,1701.0,1700.9,2.48164276]
[1693412103495,10.02359974,1701.0,1700.9,0.00384276]
[1693412103900,8.4888,1701.0,1700.9,0.00384276]
[1693412104102,10.02359974,1701.0,1700.9,0.00384276]
[1693412104300,8.4888,1701.0,1700.8,5.0922]
[1693412104501,10.02359974,1701.0,1700.8,5.0922]
[1693412104698,8.4888,1701.0,1700.8,5.0922]
[1693412105099,8.4888,1701.0,1700.8,6.52578176]
[1693412105299,8.4888,1701.0,1700.9,0.00369314]
[1693412106297,8.4888,1701.0,1700.8,6.52578176]
[1693412107303,8.4888,1701.0,1700.9,0.00369314]
[1693412108297,10.79099961,1701.0,1700.6,5.281]
[1693412108504,3.2078,1700.8,1700.6,7.7173]
[1693412109198,3.2078,1700.8,1700.6,9.15088176]
[1693412109601,8.4888,1700.8,1700.6,3.86988176]
[1693412110003,8.4888,1700.8,1700.6,2.4363]
[1693412115900,3.2078,1700.8,1700.6,9.15088176]
[1693412116305,3.2078,1700.8,1700.7,0.00356539]
[1693412117500,3.2078,1700.8,1700.7,2.27350187]
[1693412119206,3.2078,1700.8,1700.7,0.00356539]
[1693412124624,3.67203046,1700.8,1700.7,0.00356539]
[1693412125119,3.2078,1700.8,1700.7,0.00356539]
[1693412125424,3.67797856,1701.0,1700.7,5.28456539]
[1693412125611,3.67797856,1701.0,1700.8,3.70351824]
[1693412125816,3.67797856,1701.0,1700.8,6.11361824]
[1693412126322,3.67797856,1701.0,1700.9,0.0035511]
[1693412127324,3.67797856,1701.0,1700.8,6.11361824]
[1693412128418,3.67797856,1701.0,1700.9,0.0035511]
[1693412129317,3.67797856,1701.0,1700.8,6.11361824]
[1693412130321,3.67797856,1701.0,1700.9,0.0035511]
[1693412131418,3.67797856,1701.0,1700.8,6.11361824]
[1693412132423,3.67797856,1701.0,1700.9,0.00631961]
[1693412133419,3.67797856,1701.0,1700.8,6.11361824]
[1693412134322,3.67797856,1701.0,1700.9,0.00632052]
[1693412135324,3.67797856,1701.0,1700.8,6.11361824]
[1693412135528,1.53142807,1701.1,1700.9,5.281]
[1693412135822,3.2078,1701.2,1701.0,3.70351824]
[1693412136017,6.81242807,1701.3,1701.0,6.29671824]
[1693412136417,6.81242807,1701.3,1701.1,2.49990623]
[1693412136716,6.81242807,1701.3,1701.2,1.43358176]
[1693412136916,7.28291113,1701.3,1701.2,6.29671824]
[1693412137316,9.58511074,1701.3,1701.2,6.30301732]
[1693412138126,8.05368267,1701.3,1701.2,6.30301732]
[1693412141328,8.82161842,1701.3,1701.2,4.02678176]
[1693412141526,8.82161842,1701.3,1701.1,2.4936]
[1693412141718,2.29893322,1701.2,1701.1,2.4936]
[1693412142124,5.50673322,1701.2,1701.1,3.92718176]
[1693412142321,5.50673322,1701.2,1701.1,3.93348799]
[1693412142726,5.50673322,1701.2,1701.1,2.49990623]
[1693412143331,5.50673322,1701.2,1701.1,3.93348799]
[1693412143929,5.50673322,1701.2,1701.1,9.21448799]
[1693412145034,2.29893322,1701.2,1701.1,9.21448799]
[1693412145427,2.29893322,1701.2,1701.1,10.7534739]
[1693412145428,1.53442221,1701.2,1701.1,10.7534739]
[1693412145627,3.07013536,1701.5,1701.4,5.281]
[1693412145934,3.8376692,1701.7,1701.4,22.96096206]
[1693412146129,2.48233536,1701.8,1701.6,8.4888]
[1693412146335,2.48233536,1701.8,1701.6,5.281]
[1693412146525,5.281,1701.7,1701.5,2.27621412]
[1693412146732,8.4888,1701.7,1701.5,0.00627764]
[1693412147228,5.281,1701.6,1701.5,0.00627764]
[1693412147535,5.281,1701.6,1701.2,6.8207304]
[1693412147733,3.2078,1701.5,1701.2,9.09066688]
[1693412147931,3.2078,1701.5,1701.3,1.43358176]
[1693412148332,3.2078,1701.5,1701.4,0.00627003]
[1693412149432,3.2078,1701.5,1701.3,1.43358176]
[1693412150444,3.2078,1701.5,1701.4,0.0062755]
[1693412151435,3.2078,1701.5,1701.3,1.43358176]
[1693412151941,8.4888,1701.5,1701.3,1.43358176]
[1693412152343,8.4888,1701.5,1701.4,0.00604788]
[1693412153345,8.4888,1701.5,1701.2,5.281]
[1693412153545,8.4888,1701.5,1701.3,1.43358176]
[1693412154551,8.4888,1701.5,1701.4,0.00604769]
[1693412155250,8.4888,1701.5,1701.3,1.43358176]
[1693412156251,5.281,1701.4,1701.0,0.47022301]
[1693412156550,3.2078,1701.2,1700.9,7.7441]
[1693412156749,3.2078,1701.2,1701.0,1.43358176]
[1693412157250,3.2078,1701.2,1700.9,7.7441]
[1693412157449,5.281,1701.0,1700.8,0.46339655]
[1693412157652,8.4888,1701.0,1700.8,1.43358176]
[1693412158250,5.281,1701.0,1700.8,1.43358176]
[1693412158951,7.8556,1701.0,1700.8,1.43358176]
[1693412161848,2.5746,1701.0,1700.8,6.71458176]
[1693412163258,2.5746,1701.0,1700.9,0.00609108]
[1693412164258,2.5746,1701.0,1700.8,6.71458176]
[1693412164557,11.0634,1701.0,1700.7,2.4631]
[1693412165453,11.0634,1701.0,1700.8,0.00609823]
[1693412167560,11.0634,1701.0,1700.8,1.43967999]
[1693412168957,11.0634,1701.0,1700.8,0.00609823]
[1693412169159,5.281,1700.9,1700.8,0.00609823]
[1693412169353,9.1186692,1700.9,1700.4,7.1631304]
[1693412169554,5.281,1700.5,1700.4,5.6234]
[1693412169953,7.6759,1700.6,1700.4,5.6234]
[1693412170462,7.6759,1700.6,1700.5,0.00519351]
[1693412171458,7.6759,1700.6,1700.5,1.43877527]
[1693412171659,5.281,1700.8,1700.5,1.43877527]
[1693412171861,2.3949,1700.8,1700.5,6.71977527]
[1693412172062,2.3949,1700.8,1700.6,2.5101]
[1693412172566,2.3949,1700.8,1700.7,0.0051792]
[1693412173063,7.6759,1700.8,1700.3,4.7475304]
[1693412173365,5.281,1700.6,1700.4,2.51510146]
[1693412173566,2.3949,1700.8,1700.5,5.281]
[1693412173965,2.3949,1700.8,1700.6,2.5101]
[1693412174267,4.29778601,1701.0,1700.7,6.71956176]
[1693412174461,0.46011681,1701.0,1700.7,6.71956176]
[1693412174766,12.3264692,1701.1,1700.7,11.53459824]
[1693412174975,12.3264692,1701.1,1700.7,14.74239824]
[1693412175163,7.0454692,1701.1,1700.9,5.281]
[1693412175360,7.0454692,1701.1,1701.0,1.43358176]
[1693412175561,7.0454692,1701.1,1700.9,7.55093648]
[1693412175765,7.0454692,1701.1,1700.9,8.98451824]
[1693412175961,3.06572586,1701.0,1700.9,8.98451824]
[1693412176368,3.06572586,1701.0,1700.9,8.98948395]
[1693412176569,8.34672586,1701.0,1700.9,0.00496571]
[1693412177463,8.34672586,1701.0,1700.7,7.8261]
[1693412177970,10.97652586,1701.0,1700.8,1.43358176]
[1693412178370,10.97652586,1701.0,1700.9,0.00496571]
[1693412179467,10.97652586,1701.0,1700.7,10.09603648]
[1693412179667,8.34672586,1701.0,1700.8,1.43358176]
[1693412180269,8.34672586,1701.0,1700.9,0.00496571]
[1693412180473,5.281,1701.0,1700.9,0.00496571]
[1693412181075,6.27352586,1701.1,1700.9,0.00496571]
[1693412181375,6.27352586,1701.1,1700.9,3.70351824]
[1693412181873,6.27352586,1701.1,1700.9,8.98451824]
[1693412182572,6.27352586,1701.1,1701.0,0.00495856]
[1693412183675,8.4888,1701.1,1701.0,0.00495856]
[1693412183974,22.3264692,1701.1,1701.0,0.00495856]
[1693412184369,12.3264692,1701.1,1701.0,0.00495856]
[1693412184571,11.5536077,1701.1,1701.0,0.00495856]
[1693412186069,3.0648077,1701.1,1701.0,6.71954032]
[1693412186279,0.00881808,1701.2,1701.0,6.71954032]
[1693412186575,0.00881808,1701.2,1701.1,10.75873648]
[1693412187476,0.00881808,1701.2,1701.1,10.7634975]
[1693412200280,0.00881808,1701.2,1701.1,18.47804124]
[1693412201184,3.0648077,1701.5,1701.1,18.47804124]
[1693412201486,3.0648077,1701.6,1701.4,5.281]
[1693412201686,3.0648077,1701.7,1701.5,10.75873648]
[1693412201874,3.0648077,1701.7,1701.6,6.71458176]
[1693412202078,3.0648077,1701.7,1701.6,8.98451824]
[1693412202282,3.0648077,1701.7,1701.6,8.98924353]
[1693412204086,6.08922938,1701.8,1701.6,8.98924353]
[1693412204777,5.6138077,1701.8,1701.6,8.98924353]
[1693412205083,2.549,1701.8,1701.6,8.98924353]
[1693412205679,4.84680951,1701.8,1701.6,8.98924353]
[1693412205885,4.84680951,1701.8,1701.7,3.2078]
[1693412206182,2.549,1701.8,1701.7,3.2078]
[1693412206488,4.84680951,1701.8,1701.7,5.60741815]
[1693412206689,4.84680951,1701.8,1701.7,2.39961815]
[1693412208086,2.549,1701.8,1701.7,2.39961815]
[1693412208285,2.549,1701.8,1701.7,2.3949]
[1693412210395,2.549,1701.8,1701.7,5.60741815]
[1693412211990,7.57880951,1702.0,1701.7,10.88841815]
[1693412211991,2.29780951,1702.0,1701.7,10.88841815]
[1693412212185,2.5202,1701.9,1701.8,3.70351824]
[1693412212688,7.8012,1701.9,1701.7,0.00471815]
[1693412213394,7.8012,1701.9,1701.7,1.43829991]
[1693412214194,2.5202,1701.9,1701.7,9.92709991]
[1693412214394,2.5202,1701.9,1701.7,12.19703639]
[1693412215593,2.5202,1701.9,1701.7,8.98923639]
[1693412215793,7.8012,1701.9,1701.7,3.70823639]
[1693412217199,2.5202,1701.9,1701.7,8.98923639]
[1693412218094,2.5202,1701.9,1701.7,12.19703639]
[1693412218492,2.5202,1701.9,1701.7,8.98923639]
[1693412218697,2.5202,1701.9,1701.8,5.281]
[1693412219387,2.5202,1701.9,1701.8,5.28571101]
[1693412223495,2.5202,1701.9,1701.8,0.00471101]
[1693412227202,4.81800951,1701.9,1701.8,0.00471101]
[1693412227389,16.10412556,1701.9,1701.8,0.00471101]
[1693412228389,16.10412556,1701.9,1701.7,5.281]
[1693412228901,16.10412556,1701.9,1701.7,6.71458176]
[1693412229297,16.10412556,1701.9,1701.8,0.00471101]
[1693412230505,16.10412556,1701.9,1701.7,11.39921824]
[1693412231199,2.29780951,1701.8,1701.7,11.39921824]
[1693412231396,2.29780951,1701.9,1701.8,7.69953397]
[1693412231603,0.00881419,1702.0,1701.9,10.562]
[1693412231808,0.00881419,1702.0,1701.9,17.47331824]
[1693412231996,0.00881419,1702.0,1701.9,25.18595844]
[1693412232703,16.17574885,1702.3,1701.9,25.18595844]
[1693412232911,13.58324885,1702.2,1701.9,19.90495844]
[1693412233110,2.29780951,1702.2,1702.1,5.281]
[1693412233411,2.29780951,1702.2,1702.1,8.98451824]
[1693412233615,13.58324885,1702.3,1702.1,12.19231824]
[1693412233819,1.71020951,1702.3,1702.2,5.281]
[1693412236621,0.47975271,1702.4,1702.2,5.281]
[1693412236823,16.87474704,1702.5,1702.3,1.43358176]
[1693412237822,16.87474704,1702.5,1702.3,4.05608176]
[1693412238320,14.35024704,1702.5,1702.4,0.00466818]
[1693412238922,14.81345169,1702.5,1702.4,0.00466818]
[1693412239223,11.74864399,1702.5,1702.4,0.00466818]
[1693412239420,11.74864399,1702.5,1702.3,2.6225]
[1693412239620,14.81160525,1702.5,1702.3,2.6225]
[1693412239818,14.81160525,1702.5,1702.4,1.43358176]
[1693412240217,11.74864399,1702.5,1702.4,1.43358176]
[1693412240621,14.81150351,1702.5,1702.4,1.43358176]
[1693412241126,11.74864399,1702.5,1702.4,1.43358176]
[1693412241525,14.8113085,1702.5,1702.4,1.43358176]
[1693412242219,3.52586916,1702.5,1702.4,1.43358176]
[1693412242419,3.52586916,1702.5,1702.4,1.43824994]
[1693412247228,0.46320465,1702.5,1702.4,6.71924994]
[1693412247423,20.94510854,1702.6,1702.4,6.71924994]
[1693412247727,3.06127008,1702.5,1702.4,6.71924994]
[1693412249531,3.06057666,1702.5,1702.4,6.71924994]
[1693412254130,21.39187294,1702.6,1702.4,6.71924994]
[1693412254332,3.06067304,1702.5,1702.4,6.71924994]
[1693412255138,21.39187294,1702.6,1702.4,6.71924994]
[1693412255431,14.35835212,1702.6,1702.5,7.55093648]
[1693412255733,6.13364502,1702.6,1702.5,7.55093648]
[1693412255935,6.13364502,1702.6,1702.5,9.95023648]
[1693412256436,6.13364502,1702.6,1702.5,9.95489752]
[1693412260431,6.13330657,1702.6,1702.5,9.95489752]
[1693412260637,3.07291278,1702.6,1702.5,9.95489752]
[1693412260835,18.18407294,1702.6,1702.5,0.00466104]
[1693412261434,18.18407294,1702.6,1702.4,5.281]
[1693412261643,3.06030428,1702.5,1702.4,5.281]
[1693412261843,3.06030428,1702.5,1702.4,6.71458176]
[1693412262440,3.06030428,1702.5,1702.4,6.71924994]
[1693412264250,18.18407294,1702.6,1702.4,6.71924994]
[1693412264550,18.19288377,1702.6,1702.4,6.71924994]
[1693412264946,3.82572082,1702.5,1702.4,6.71924994]
[1693412265142,12.31452082,1702.5,1702.4,0.00466818]
[1693412265344,19.77423934,1702.5,1702.0,5.281]
[1693412265544,3.2078,1702.1,1702.0,5.281]
[1693412265744,6.26874042,1702.1,1702.0,5.281]
[1693412266450,6.26874042,1702.1,1702.0,5.28551718]
[1693412267753,3.2078,1702.1,1702.0,5.28551718]
[1693412268052,7.03397552,1702.1,1702.0,5.28551718]
[1693412268945,7.03397552,1702.1,1702.0,0.00451718]
[1693412269150,18.31974965,1702.1,1702.0,0.00451718]
[1693412269345,18.31974965,1702.1,1701.8,7.7499]
[1693412269547,3.06105933,1702.0,1701.8,7.7499]
[1693412270448,3.06105933,1702.0,1701.9,0.00452432]
[1693412274650,18.31974965,1702.1,1701.9,0.00452432]
[1693412275051,3.06376226,1702.0,1701.9,0.00452432]
[1693412275251,18.31974965,1702.1,1701.9,1.43810608]
[1693412275555,3.06377463,1702.0,1701.9,1.43810608]
[1693412276254,18.31974965,1702.1,1701.9,1.43810608]
[1693412276451,3.06462631,1702.0,1701.9,1.43810608]
[1693412276851,3.82617552,1702.0,1701.9,1.43810608]
[1693412277245,3.82617552,1702.0,1701.9,6.71910608]
[1693412277749,3.06496999,1702.0,1701.9,6.71910608]
[1693412277950,3.06496999,1702.0,1701.9,9.92690608]
[1693412280559,3.53220323,1702.1,1701.9,15.20338176]
[1693412280758,3.06496999,1702.2,1702.0,7.55093648]
[1693412281060,3.06496999,1702.3,1702.1,9.92238176]
[1693412281263,3.82617552,1702.4,1702.2,7.55093648]
[1693412281460,3.06529042,1702.3,1702.2,2.27443938]
[1693412281757,3.82617552,1702.4,1702.2,10.03213938]
[1693412281962,3.82617552,1702.3,1702.2,4.75113938]
[1693412282259,3.82617552,1702.3,1702.2,11.46572114]
[1693412288462,3.82617552,1702.3,1702.2,10.03213938]
[1693412288757,3.82617552,1702.3,1702.2,11.46572114]
[1693412296767,3.06763835,1702.3,1702.2,19.07541281]
[1693412298572,3.06786525,1702.3,1702.2,19.07541281]
[1693412299170,3.06786525,1702.3,1702.2,11.46572114]
[1693412301767,3.06786525,1702.3,1702.2,2.4812029]
[1693412301974,8.4888,1702.4,1702.2,0.0045029]
[1693412302369,5.281,1702.3,1702.1,0.00881186]
[1693412302672,3.2078,1702.2,1702.1,0.00881186]
[1693412303463,3.2078,1702.2,1702.1,0.0133219]
[1693412304465,3.2078,1702.2,1702.1,0.00881186]
[1693412306374,14.49282499,1702.2,1702.1,0.00881186]
[1693412306964,14.49280858,1702.2,1702.1,0.00881186]
[1693412308975,14.49287754,1702.2,1702.1,0.00881186]
[1693412310274,19.09467542,1702.2,1702.1,0.00881186]
[1693412310877,14.49287754,1702.2,1702.1,0.00881186]
[1693412311471,14.49287754,1702.2,1702.1,0.01332433]
[1693412312680,14.96268858,1702.2,1702.1,0.01332433]
[1693412314082,17.55738858,1702.2,1702.1,0.01332433]
[1693412317388,6.27231104,1702.2,1702.1,0.01332433]
[1693412318184,17.5571283,1702.2,1702.1,0.01332433]
[1693412320587,22.15892618,1702.2,1702.1,0.01332433]
[1693412335308,0.46981104,1702.2,1702.1,6.72790609]
[1693412335496,4.60179788,1702.3,1702.1,6.72339362]
[1693412335702,15.88611938,1702.3,1702.1,6.72339362]
[1693412336605,15.88611938,1702.3,1702.2,0.00450533]
[1693412336804,16.3445411,1702.3,1702.2,0.00450533]
[1693412337007,16.3445411,1702.3,1702.2,2.43540533]
[1693412337407,16.3445411,1702.3,1702.2,2.4309]
[1693412338707,16.3445411,1702.3,1702.2,4.70083648]
[1693412339507,16.3445411,1702.3,1702.2,4.70534181]
[1693412340404,16.3445411,1702.3,1702.2,9.98634181]
[1693412340608,5.0602196,1702.3,1702.2,9.98634181]
[1693412342600,16.3445411,1702.3,1702.2,9.98634181]
[1693412343211,5.0602196,1702.3,1702.2,9.98634181]
[1693412343609,16.3445411,1702.3,1702.2,9.98634181]
[1693412344905,21.71818567,1702.3,1702.2,7.71640533]
[1693412345107,11.74274322,1702.3,1702.2,7.71640533]
[1693412345311,0.45842172,1702.3,1702.2,7.71640533]
[1693412345503,22.4707857,1702.4,1702.2,7.71640533]
[1693412345708,5.3687642,1702.3,1702.2,7.71640533]
[1693412346312,15.89259849,1702.3,1702.2,7.71640533]
[1693412346515,16.6530857,1702.3,1702.2,7.71640533]
[1693412351507,5.3687642,1702.3,1702.2,7.71640533]
[1693412351912,5.3687642,1702.3,1702.2,2.43540533]
[1693412352111,16.6530857,1702.3,1702.2,2.43540533]
[1693412352919,15.89380839,1702.3,1702.2,2.43540533]
[1693412356313,16.35482246,1702.3,1702.2,7.71640533]
[1693412362213,0.46101407,1702.3,1702.2,7.71640533]
[1693412362523,7.81728689,1702.4,1702.2,7.71640533]
[1693412362724,7.81728689,1702.4,1702.3,8.98451824]
[1693412363422,7.81728689,1702.4,1702.3,8.98899943]
[1693412365719,3.2078,1702.4,1702.3,8.98899943]
[1693412368223,3.2078,1702.4,1702.3,3.70799943]
[1693412368519,3.2078,1702.4,1701.5,6.91891686]
[1693412368520,13.2078,1701.9,1701.5,6.91891686]
[1693412368722,5.281,1701.5,1701.1,0.88851618]
[1693412369022,5.281,1701.5,1700.9,4.61261124]
[1693412369023,10.02347618,1701.2,1701.0,3.85028173]
[1693412369326,5.878,1701.1,1700.6,2.25104243]
[1693412369519,10.44995076,1701.1,1700.5,1.43257802]
[1693412369723,5.50733862,1700.6,1700.2,4.61758495]
[1693412369917,5.50733862,1700.6,1700.3,2.26993648]
[1693412369918,5.36649395,1700.6,1700.3,2.26993648]
[1693412370116,5.36649395,1700.6,1700.4,3.2078]
[1693412370117,2.29953862,1700.6,1700.4,3.2078]
[1693412370332,2.29941609,1700.5,1700.4,8.4888]
[1693412370529,2.29953862,1700.6,1700.4,9.92238176]
[1693412370830,2.29953862,1700.6,1700.5,1.43358176]
[1693412370831,3.83092712,1700.6,1700.5,1.43358176]
[1693412371327,14.52133647,1700.6,1700.1,1.53791173]
[1693412371628,6.81225682,1700.5,1700.2,6.71458176]
[1693412371822,6.81225682,1700.5,1700.3,1.43358176]
[1693412372132,6.71458176,1700.4,1700.0,4.74571173]
[1693412372427,7.55093648,1700.3,1700.0,6.17929349]
[1693412372624,5.281,1700.1,1700.0,3.2078]
[1693412372825,5.281,1700.4,1700.1,7.47806001]
[1693412373029,5.281,1700.4,1700.2,1.43358176]
[1693412373426,6.71458176,1700.4,1700.2,1.43358176]
[1693412373928,5.281,1700.4,1700.2,2.86716352]
[1693412374123,3.2078,1700.7,1700.2,11.35596352]
[1693412374124,5.281,1700.5,1700.2,11.35596352]